[Event "Sheikh Russel GM 2021"]
[Site "Dhaka"]
[Date "2021.10.24"]
[Round "6.20"]
[White "Shahil Dey"]
[Black "Mohammad Nubairshah Shaikh"]
[Result "1/2-1/2"]
[ECO "B15"]
[WhiteElo "2398"]
[BlackElo "2440"]
[Annotator "ChessBase"]
[PlyCount "100"]
[EventDate "2021.10.19"]
[EventType "swiss"]
[EventCountry "BAN"]
[SourceTitle "playchess.com"]
[Source "ChessBase"]
[SourceQuality "1"]
[TimeControl "40/5400+30:1800+30"]

1. e4 {[%emt 1:31:00]} g6 {[%emt 0:02:59]} 2. d4 {[%emt 0:00:00]} Bg7 {[%emt 0:00:02]} 3. Nc3 {[%emt 0:00:00]} c6 {[%emt 0:00:02]} 4. Be3 {[%emt 0:00:00]} d5 {[%emt 0:00:12]} 5. Qd2 {[%emt 0:00:00]} dxe4 {[%emt 0:05:09]} 6. Nxe4 {[%emt 0:00:00]} Nd7 {[%emt 0:00:02]} 7. Nf3 {[%emt 0:00:00]} Ngf6 {[%emt 0:00:07]} 8. Nxf6+ {[%emt 0:00:00]} Nxf6 {[%emt 0:00:04]} 9. Bc4 {[%emt 0:00:00]} O-O {[%emt 0:01:32]} 10. O-O {[%emt 0:00:00]} Bf5 {[%emt 0:04:38]} 11. c3 {[%emt 0:00:00]} Ne4 {[%emt 0:24:25]} 12. Qe2 {[%emt 0:00:00]} Nd6 {[%emt 0:01:28]} 13. Bb3 {[%emt 0:00:00]} a5 {[%emt 0:00:02]} 14. Bc2 {[%emt 0:00:00]} a4 {[%emt 0:03:00]} 15. Bf4 {[%emt 0:00:00]} Bxc2 {[%emt 0:08:36]} 16. Qxc2 {[%emt 0:00:00]} Qa5 {[%emt 0:00:44]} 17. Rfe1 {[%emt 0:00:00]} Rfe8 {[%emt 0:00:10]} 18. Be5 {[%emt 0:00:00]} Bh6 {[%emt 0:01:05]} 19. h4 {[%emt 0:00:00]} Qd5 {[%emt 0:04:23]} 20. h5 {[%emt 0:00:00]} b5 {[%emt 0:04:20]} 21. hxg6 {[%emt 0:00:00]} hxg6 {[%emt 0:00:07]} 22. Nh4 {[%emt 0:00:00]} Kh7 {[%emt 0:03:22]} 23. f4 {[%emt 0:00:00]} Qe6 {[%emt 0:10:04]} 24. Bxd6 {[%emt 0:00:00]} Qxd6 {[%emt 0:00:02]} 25. f5 {[%emt 0:00:00]} c5 {[%emt 0:12:05]} 26. fxg6+ {[%emt 0:00:00]} fxg6 {[%emt 0:00:03]} 27. Rad1 {[%emt 0:00:00]} Ra6 {[%emt 0:00:14]} 28. Qe4 {[%emt 0:00:00]} a3 {[%emt 0:03:03]} 29. b3 {[%emt 0:00:00]} cxd4 {[%emt 0:01:56]} 30. cxd4 {[%emt 0:00:00]} Qf4 {[%emt 0:07:45]} 31. d5 {[%emt 0:00:00]} Rf6 {[%emt 0:02:27]} 32. Nf3 {[%emt 0:00:00]} Qg3 {[%emt 0:00:23]} 33. Rd3 {[%emt 0:00:00]} Bf4 {[%emt 0:00:29]} 34. Qd4 {[%emt 0:05:27]} Rf5 {[%emt 0:01:43]} 35. Ng5+ {[%emt 0:01:33]} Rxg5 {[%emt 0:00:43]} 36. Rxg3 {[%emt 0:00:05]} Bxg3 {[%emt 0:00:01]} 37. Re4 {[%emt 0:03:55]} Rf5 {[%emt 0:00:21]} 38. Qd3 {[%emt 0:01:41]} Bf2+ {[%emt 0:00:56]} 39. Kf1 {[%emt 0:00:02]} Bc5+ {[%emt 0:00:40]} 40. Ke2 {[%emt 0:00:00]} Rf2+ {[%emt 0:00:00]} 41. Kd1 {[%emt 0:00:04]} Rf5 {[%emt 0:06:10]} 42. Rh4+ {[%emt 0:07:22]} Kg8 {[%emt 0:00:07]} 43. Qc3 {[%emt 0:13:17]} Rxd5+ {[%emt 0:00:31]} 44. Kc2 {[%emt 0:02:47]} Kf7 {[%emt 0:04:42]} 45. b4 {[%emt 0:01:08]} Bd6 {[%emt 0:00:41]} 46. Qc6 {[%emt 0:04:00]} Rg5 {[%emt 0:02:24]} 47. Rh7+ {[%emt 0:00:14]} Kg8 {[%emt 0:00:06]} 48. Qxe8+ {[%emt 0:01:14]} Kxh7 {[%emt 0:00:02]} 49. Qf7+ {[%emt 0:00:21]} Kh6 {[%emt 0:00:32]} 50. Qf8+ {[%emt 0:00:01]} Kh7 {[%emt 0:00:50]} 1/2-1/2

[Event "Sheikh Russel GM 2021"]
[Site "Dhaka"]
[Date "2021.10.24"]
[Round "6.21"]
[White "Rahman, Ziaur"]
[Black "Mehdi Hasan Parag"]
[Result "1-0"]
[ECO "D02"]
[WhiteElo "2431"]
[BlackElo "2154"]
[Annotator "ChessBase"]
[PlyCount "73"]
[EventDate "2021.10.19"]
[EventType "swiss"]
[EventCountry "BAN"]
[SourceTitle "playchess.com"]
[Source "ChessBase"]
[SourceQuality "1"]
[TimeControl "40/5400+30:1800+30"]

1. d4 {[%emt 0:01:03]} d5 {[%emt 0:00:07]} 2. Nf3 {[%emt 0:00:05]} Nf6 {[%emt 0:00:26]} 3. c3 {[%emt 0:00:11]} c5 {[%emt 0:02:00]} 4. dxc5 {[%emt 0:00:17]} Nc6 {[%emt 0:03:26]} 5. e3 {[%emt 0:00:18]} e5 {[%emt 0:00:23]} 6. b4 {[%emt 0:00:45]} e4 {[%emt 0:00:51]} 7. Nd4 {[%emt 0:00:15]} Ne5 {[%emt 0:00:58]} 8. Nd2 {[%emt 0:00:40]} a5 {[%emt 0:02:05]} 9. Bb2 {[%emt 0:02:49]} Be7 {[%emt 0:03:34]} 10. a3 {[%emt 0:01:44]} O-O {[%emt 0:00:36]} 11. h3 {[%emt 0:02:29]} Bd7 {[%emt 0:06:41]} 12. Be2 {[%emt 0:06:28]} b6 {[%emt 0:01:12]} 13. cxb6 {[%emt 0:01:52]} Qxb6 {[%emt 0:00:08]} 14. O-O {[%emt 0:00:13]} Rfc8 {[%emt 0:01:35]} 15. Rc1 {[%emt 0:04:27]} Rc7 {[%emt 0:06:57]} 16. b5 {[%emt 0:01:41]} Rac8 {[%emt 0:04:24]} 17. a4 {[%emt 0:01:10]} Ne8 {[%emt 0:05:04]} 18. f4 {[%emt 0:03:14]} exf3 {[%emt 0:01:37]} 19. N2xf3 {[%emt 0:00:12]} Nc4 {[%emt 0:00:37]} 20. Bxc4 {[%emt 0:00:17]} dxc4 {[%emt 0:03:00]} 21. Qc2 {[%emt 0:01:13]} Qh6 {[%emt 0:07:29]} 22. Rce1 {[%emt 0:00:53]} Rc5 {[%emt 0:05:08]} 23. Ba3 {[%emt 0:02:49]} Bd6 {[%emt 0:03:43]} 24. Bxc5 {[%emt 0:00:58]} Rxc5 {[%emt 0:00:02]} 25. e4 {[%emt 0:00:39]} Rh5 {[%emt 0:05:27]} 26. Nf5 {[%emt 0:02:01]} Bc5+ {[%emt 0:00:22]} 27. Kh1 {[%emt 0:02:54]} Qb6 {[%emt 0:02:12]} 28. Qd1 {[%emt 0:07:03]} Bc8 {[%emt 0:04:45]} 29. Ne5 {[%emt 0:02:28]} g6 {[%emt 0:00:36]} 30. Nd7 {[%emt 0:01:07]} Qc7 {[%emt 0:04:40]} 31. Nxc5 {[%emt 0:00:57]} Qxc5 {[%emt 0:00:09]} 32. Qd8 {[%emt 0:03:35]} Kf8 {[%emt 0:00:09]} 33. Nd6 {[%emt 0:01:40]} Qxd6 {[%emt 0:00:30]} 34. Qxc8 {[%emt 0:00:07]} Qg3 {[%emt 0:01:53]} 35. b6 {[%emt 0:03:29]} Kg7 {[%emt 0:01:39]} 36. b7 {[%emt 0:01:00]} Nd6 {[%emt 0:01:29]} 37. b8=Q {[%emt 0:00:41]} 1-0

[Event "Sheikh Russel GM 2021"]
[Site "Dhaka"]
[Date "2021.10.24"]
[Round "6.22"]
[White "Mohammad Minhaz Uddin"]
[Black "Savchenko, Stanislav"]
[Result "0-1"]
[ECO "B80"]
[WhiteElo "2264"]
[BlackElo "2473"]
[Annotator "ChessBase"]
[PlyCount "82"]
[EventDate "2021.10.19"]
[EventType "swiss"]
[EventCountry "BAN"]
[SourceTitle "playchess.com"]
[Source "ChessBase"]
[SourceQuality "1"]
[TimeControl "40/5400+30:1800+30"]

1. e4 {[%emt 0:00:04]} c5 {[%emt 0:00:47]} 2. Nf3 {[%emt 0:00:03]} d6 {[%emt 0:00:04]} 3. d4 {[%emt 0:00:09]} cxd4 {[%emt 0:00:09]} 4. Nxd4 {[%emt 0:00:03]} Nf6 {[%emt 0:00:06]} 5. Nc3 {[%emt 0:00:09]} a6 {[%emt 0:00:05]} 6. g3 {[%emt 0:04:07]} e6 {[%emt 0:02:19]} 7. Bg2 {[%emt 0:00:03]} Be7 {[%emt 0:00:04]} 8. O-O {[%emt 0:00:10]} Qc7 {[%emt 0:00:32]} 9. Be3 {[%emt 0:00:19]} Nc6 {[%emt 0:00:45]} 10. Nxc6 {[%emt 0:05:12]} bxc6 {[%emt 0:01:37]} 11. Na4 {[%emt 0:00:05]} Rb8 {[%emt 0:02:00]} 12. c4 {[%emt 0:00:10]} c5 {[%emt 0:01:01]} 13. b3 {[%emt 0:04:17]} Bb7 {[%emt 0:02:40]} 14. Qd3 {[%emt 0:05:00]} Ng4 {[%emt 0:04:02]} 15. Bf4 {[%emt 0:05:31]} Ne5 {[%emt 0:10:27]} 16. Bxe5 {[%emt 0:04:16]} dxe5 {[%emt 0:01:55]} 17. Rad1 {[%emt 0:01:18]} Rd8 {[%emt 0:04:05]} 18. Qc2 {[%emt 0:02:13]} O-O {[%emt 0:00:27]} 19. Nc3 {[%emt 0:09:51]} Qa5 {[%emt 0:04:32]} 20. Rxd8 {[%emt 0:21:57]} Rxd8 {[%emt 0:00:43]} 21. Bf3 {[%emt 0:02:24]} Bc6 {[%emt 0:12:52]} 22. Kg2 {[%emt 0:03:46]} g6 {[%emt 0:01:42]} 23. h4 {[%emt 0:04:23]} h5 {[%emt 0:05:13]} 24. Rd1 {[%emt 0:01:22]} Rd4 {[%emt 0:01:16]} 25. Rxd4 {[%emt 0:03:52]} cxd4 {[%emt 0:05:06]} 26. Na4 {[%emt 0:05:43]} Ba3 {[%emt 0:08:13]} 27. Kf1 {[%emt 0:02:42]} Qb4 {[%emt 0:13:04]} 28. Be2 {[%emt 0:06:11]} f5 {[%emt 0:06:32]} 29. Bd3 {[%emt 0:00:34]} Qb7 {[%emt 0:00:45]} 30. f3 {[%emt 0:02:00]} Qf7 {[%emt 0:02:34]} 31. Kg2 {[%emt 0:01:10]} f4 {[%emt 0:02:06]} 32. Qd2 {[%emt 0:00:13]} Qc7 {[%emt 0:01:49]} 33. Nb2 {[%emt 0:01:34]} fxg3 {[%emt 0:02:29]} 34. Kxg3 {[%emt 0:00:49]} Qf7 {[%emt 0:00:47]} 35. Nd1 {[%emt 0:01:13]} Be7 {[%emt 0:00:13]} 36. Nf2 {[%emt 0:01:43]} Qf6 {[%emt 0:00:26]} 37. Qg5 {[%emt 0:00:37]} Qg7 {[%emt 0:00:24]} 38. Qd2 {[%emt 0:02:42]} g5 {[%emt 0:00:07]} 39. Nh1 {[%emt 0:01:21]} g4 {[%emt 0:01:21]} 40. Nf2 {[%emt 0:00:00]} gxf3+ {[%emt 0:00:00]} 41. Kxf3 {[%emt 0:00:33]} Bxh4 {[%emt 0:00:55]} 0-1

[Event "Sheikh Russel GM 2021"]
[Site "Dhaka"]
[Date "2021.10.24"]
[Round "6.24"]
[White "Pranav Vijay"]
[Black "Sourath Biswas"]
[Result "1/2-1/2"]
[ECO "B12"]
[WhiteElo "2265"]
[BlackElo "2270"]
[Annotator "ChessBase"]
[PlyCount "95"]
[EventDate "2021.10.19"]
[EventType "swiss"]
[EventCountry "BAN"]
[SourceTitle "playchess.com"]
[Source "ChessBase"]
[SourceQuality "1"]
[TimeControl "40/5400+30:1800+30"]

1. e4 c6 {[%emt 0:05:41]} 2. d4 {[%emt 0:00:08]} d5 {[%emt 0:00:06]} 3. e5 {[%emt 0:00:05]} Bf5 {[%emt 0:00:04]} 4. Nf3 {[%emt 0:00:11]} e6 {[%emt 0:00:02]} 5. Be2 {[%emt 0:00:08]} c5 {[%emt 0:00:08]} 6. Be3 {[%emt 0:00:05]} Qb6 {[%emt 0:00:04]} 7. Nc3 {[%emt 0:00:12]} Nc6 {[%emt 0:00:06]} 8. O-O {[%emt 0:00:39]} Qxb2 {[%emt 0:00:04]} 9. Qb1 {[%emt 0:08:04]} Qxb1 {[%emt 0:00:24]} 10. Raxb1 {[%emt 0:00:06]} O-O-O {[%emt 0:00:04]} 11. Bb5 {[%emt 0:27:24]} c4 {[%emt 0:05:14]} 12. Ba4 {[%emt 0:03:29]} h6 {[%emt 0:02:21]} 13. Nh4 {[%emt 0:00:59]} Bh7 {[%emt 0:00:05]} 14. f4 {[%emt 0:00:26]} Be7 {[%emt 0:02:45]} 15. Nf3 {[%emt 0:02:24]} Nb8 {[%emt 0:00:39]} 16. g4 {[%emt 0:12:31]} h5 {[%emt 0:07:40]} 17. g5 {[%emt 0:01:38]} a6 {[%emt 0:10:59]} 18. Nh4 {[%emt 0:07:08]} Kc7 {[%emt 0:35:34]} 19. f5 {[%emt 0:06:44]} b5 {[%emt 0:00:07]} 20. f6 {[%emt 0:02:13]} gxf6 {[%emt 0:00:19]} 21. exf6 {[%emt 0:01:18]} Nxf6 {[%emt 0:14:23]} 22. Bf4+ {[%emt 0:12:01]} Bd6 {[%emt 0:05:26]} 23. Bxd6+ {[%emt 0:05:54]} Rxd6 {[%emt 0:00:04]} 24. Bxb5 {[%emt 0:05:32]} Nfd7 {[%emt 0:00:04]} 25. Rxf7 {[%emt 0:00:43]} axb5 {[%emt 0:01:06]} 26. Nxb5+ {[%emt 0:00:46]} Kc6 {[%emt 0:00:04]} 27. Na7+ {[%emt 0:01:14]} Kc7 {[%emt 0:00:05]} 28. Nb5+ {[%emt 0:00:16]} Kc6 {[%emt 0:00:05]} 29. Nf3 {[%emt 0:01:12]} Bxc2 {[%emt 0:02:53]} 30. Rb2 {[%emt 0:00:21]} c3 {[%emt 0:00:03]} 31. Ne5+ {[%emt 0:00:57]} Kb6 {[%emt 0:00:18]} 32. Nxc3+ {[%emt 0:00:26]} Ka6 {[%emt 0:00:27]} 33. Nb5 {[%emt 0:01:13]} Nxe5 {[%emt 0:04:01]} 34. dxe5 {[%emt 0:00:01]} Rd7 {[%emt 0:01:59]} 35. Rxd7 {[%emt 0:01:00]} Nxd7 {[%emt 0:00:06]} 36. Nc7+ {[%emt 0:00:03]} Ka5 {[%emt 0:00:03]} 37. Rxc2 {[%emt 0:00:21]} Rc8 {[%emt 0:00:03]} 38. Rc6 {[%emt 0:00:50]} Nxe5 {[%emt 0:00:24]} 39. Ra6+ {[%emt 0:00:07]} Kb4 {[%emt 0:00:05]} 40. Nxe6 {[%emt 0:00:00]} Rc2 {[%emt 0:00:00]} 41. Nd4 {[%emt 0:03:02]} Rd2 {[%emt 0:01:32]} 42. Re6 {[%emt 0:01:50]} Kc4 {[%emt 0:23:27]} 43. Rxe5 {[%emt 0:02:14]} Kxd4 {[%emt 0:00:04]} 44. g6 {[%emt 0:01:28]} Kxe5 {[%emt 0:05:55]} 45. g7 {[%emt 0:00:02]} Rd4 {[%emt 0:00:05]} 46. h3 {[%emt 0:06:01]} Rd1+ {[%emt 0:00:10]} 47. Kg2 {[%emt 0:00:09]} Rd2+ {[%emt 0:00:02]} 48. Kg1 {[%emt 0:00:10]} 1/2-1/2

[Event "Sheikh Russel GM 2021"]
[Site "Dhaka"]
[Date "2021.10.27"]
[Round "9.1"]
[White "Rasulov, Vugar"]
[Black "Krasenkow, Michal"]
[Result "0-1"]
[ECO "B33"]
[WhiteElo "2452"]
[BlackElo "2578"]
[Annotator "ChessBase"]
[PlyCount "140"]
[EventDate "2021.10.19"]
[EventType "swiss"]
[EventCountry "BAN"]
[SourceTitle "playchess.com"]
[Source "ChessBase"]
[SourceQuality "1"]
[TimeControl "40/5400+30:1800+30"]

1. e4 {[%emt 0:00:11]} c5 {[%emt 0:00:04]} 2. Nf3 {[%emt 0:00:28]} Nc6 {[%emt 0:00:07]} 3. d4 {[%emt 0:00:25]} cxd4 {[%emt 0:00:07]} 4. Nxd4 {[%emt 0:00:09]} Nf6 {[%emt 0:00:04]} 5. Nc3 {[%emt 0:00:08]} e5 {[%emt 0:00:03]} 6. Ndb5 {[%emt 0:00:32]} d6 {[%emt 0:00:08]} 7. Bg5 {[%emt 0:00:37]} a6 {[%emt 0:00:08]} 8. Na3 {[%emt 0:00:15]} b5 {[%emt 0:00:05]} 9. Nd5 {[%emt 0:00:21]} Be7 {[%emt 0:00:08]} 10. Bxf6 {[%emt 0:00:06]} Bxf6 {[%emt 0:00:05]} 11. c4 {[%emt 0:00:04]} b4 {[%emt 0:00:06]} 12. Nc2 {[%emt 0:00:04]} a5 {[%emt 0:00:05]} 13. Be2 {[%emt 0:00:06]} O-O {[%emt 0:01:11]} 14. O-O {[%emt 0:00:04]} Bg5 {[%emt 0:00:03]} 15. Qd3 {[%emt 0:00:05]} Be6 {[%emt 0:01:18]} 16. Rfd1 {[%emt 0:02:40]} g6 {[%emt 0:01:03]} 17. Bf3 {[%emt 0:01:06]} Qb8 {[%emt 0:02:32]} 18. b3 {[%emt 0:01:42]} Qa7 {[%emt 0:07:07]} 19. Qe2 {[%emt 0:00:48]} Nd4 {[%emt 0:10:31]} 20. Nxd4 exd4 {[%emt 0:00:02]} 21. e5 {[%emt 0:08:04]} Bxd5 {[%emt 0:05:32]} 22. cxd5 {[%emt 0:00:56]} dxe5 {[%emt 0:03:32]} 23. Qxe5 {[%emt 0:00:12]} Bh6 {[%emt 0:00:20]} 24. d6 {[%emt 0:06:29]} Rad8 {[%emt 0:02:35]} 25. Bg4 {[%emt 0:06:45]} d3 {[%emt 0:06:25]} 26. Qd5 {[%emt 0:01:18]} d2 {[%emt 0:00:18]} 27. d7 {[%emt 0:02:51]} Bg7 {[%emt 0:00:15]} 28. Rab1 {[%emt 0:01:20]} Bc3 {[%emt 0:00:10]} 29. Bh3 {[%emt 0:02:05]} Kg7 {[%emt 0:05:27]} 30. Qd6 {[%emt 0:09:55]} f5 {[%emt 0:00:18]} 31. Qe7+ {[%emt 0:03:18]} Kh8 {[%emt 0:02:01]} 32. Rxd2 {[%emt 0:00:04]} Bxd2 {[%emt 0:00:30]} 33. Qe5+ {[%emt 0:00:04]} Kg8 {[%emt 0:00:06]} 34. Qe6+ {[%emt 0:00:04]} Kg7 {[%emt 0:06:42]} 35. Qe7+ {[%emt 0:00:02]} Rf7 {[%emt 0:00:11]} 36. Qxd8 {[%emt 0:00:06]} Rxd7 {[%emt 0:00:04]} 37. Qe8 {[%emt 0:05:25]} Bc3 {[%emt 0:01:51]} 38. Rf1 {[%emt 0:02:15]} Rd2 {[%emt 0:02:29]} 39. g4 {[%emt 0:03:58]} fxg4 {[%emt 0:21:41]} 40. Bxg4 {[%emt 0:00:00]} Rxa2 {[%emt 0:00:00]} 41. Be6 {[%emt 0:00:24]} Qc5 {[%emt 0:08:37]} 42. Qd7+ {[%emt 0:07:20]} Kh6 {[%emt 0:00:59]} 43. Bg8 {[%emt 0:00:21]} Bg7 {[%emt 0:07:10]} 44. Bd5 {[%emt 0:10:53]} Bf6 {[%emt 0:02:10]} 45. Bg8 {[%emt 0:03:02]} Qe7 {[%emt 0:00:40]} 46. Qh3+ {[%emt 0:05:10]} Bh4 {[%emt 0:00:10]} 47. Bd5 {[%emt 0:05:17]} Qg5+ {[%emt 0:03:25]} 48. Bg2 {[%emt 0:00:14]} Qf4 {[%emt 0:00:35]} 49. Qf3 {[%emt 0:04:31]} Qxf3 {[%emt 0:01:51]} 50. Bxf3 {[%emt 0:01:51]} Kg5 {[%emt 0:00:22]} 51. Bd5 {[%emt 0:00:06]} Kf4 {[%emt 0:01:55]} 52. Kg2 {[%emt 0:00:14]} Rd2 {[%emt 0:03:57]} 53. Bg8 {[%emt 0:00:12]} h6 {[%emt 0:00:24]} 54. Bf7 {[%emt 0:00:11]} g5 {[%emt 0:00:18]} 55. h3 {[%emt 0:03:27]} Ke4 {[%emt 0:10:16]} 56. Bg8 {[%emt 0:00:50]} Kd3 {[%emt 0:02:00]} 57. Kf3 {[%emt 0:00:12]} Kc2 {[%emt 0:03:02]} 58. Ra1 {[%emt 0:03:52]} Rxf2+ {[%emt 0:03:22]} 59. Kg4 {[%emt 0:00:01]} Rf4+ {[%emt 0:01:13]} 60. Kh5 {[%emt 0:00:02]} Rf3 {[%emt 0:01:38]} 61. Ra2+ {[%emt 0:00:17]} Kc3 {[%emt 0:02:10]} 62. Rxa5 {[%emt 0:00:15]} Rxh3 {[%emt 0:00:02]} 63. Kg4 {[%emt 0:03:08]} Rh2 {[%emt 0:00:25]} 64. Rc5+ {[%emt 0:02:24]} Kb2 {[%emt 0:00:10]} 65. Re5 {[%emt 0:00:19]} h5+ {[%emt 0:00:39]} 66. Kf5 {[%emt 0:02:08]} g4 {[%emt 0:00:16]} 67. Kg6 {[%emt 0:01:17]} g3 {[%emt 0:00:39]} 68. Bd5 {[%emt 0:00:03]} Rd2 {[%emt 0:00:47]} 69. Kxh5 {[%emt 0:00:40]} g2 {[%emt 0:01:04]} 70. Bxg2 {[%emt 0:00:31]} Rxg2 {[%emt 0:00:16]} 0-1

[Event "Sheikh Russel GM 2021"]
[Site "Dhaka"]
[Date "2021.10.27"]
[Round "9.14"]
[White "Hossain, Enamul"]
[Black "Pranav Vijay"]
[Result "0-1"]
[ECO "E32"]
[WhiteElo "2396"]
[BlackElo "2265"]
[Annotator "NA"]
[PlyCount "140"]
[EventDate "2021.10.19"]
[EventType "swiss"]
[EventCountry "BAN"]
[SourceTitle "playchess.com"]
[Source "ChessBase"]
[SourceQuality "1"]
[TimeControl "40/5400+30:1800+30"]

1. d4 {[%emt 0:00:05]} Nf6 {[%emt 0:00:15]} 2. c4 {[%emt 0:00:13]} e6 {[%emt 0:00:05]} 3. Nc3 {[%emt 0:00:10]} Bb4 {[%emt 0:00:05]} 4. Qc2 {[%emt 0:00:18]} O-O {[%emt 0:00:22]} 5. e4 {[%emt 0:00:22]} d6 {[%emt 0:00:05]} 6. e5 {[%emt 0:00:52]} dxe5 {[%emt 0:01:20]} 7. dxe5 {[%emt 0:00:49]} Ng4 {[%emt 0:00:30]} 8. Nf3 {[%emt 0:16:24]} Nc6 {[%emt 0:00:22]} 9. Bf4 {[%emt 0:03:36]} Nd4 {[%emt 0:03:51]} 10. Qd3 {[%emt 0:03:11] [#]} f6 $1 {[%emt 0:06:57]} 11. Qxd4 {[%emt 0:10:45]} Qxd4 {[%emt 0:00:25]} 12. Nxd4 {[%emt 0:00:02]} fxe5 {[%emt 0:00:18]} 13. Nxe6 {[%emt 0:00:48]} Bxe6 {[%emt 0:00:20]} 14. Bg3 {[%emt 0:00:04]} Bc5 {[%emt 0:04:43]} 15. Ne4 {[%emt 0:00:57]} Bd4 {[%emt 0:01:24]} 16. Rb1 {[%emt 0:12:04]} (16. Bd3 $1 $11 {keeps the balance.}) 16... Nf6 {[%emt 0:11:07]} 17. Nxf6+ {[%emt 0:02:14]} gxf6 {[%emt 0:00:09]} 18. Bd3 {[%emt 0:02:44]} Rad8 $17 {[%emt 0:01:40]} 19. Ke2 {[%emt 0:05:54]} f5 {[%emt 0:02:26]} 20. b3 {[%emt 0:01:22]} Rd7 {[%emt 0:05:41]} 21. Bh4 {[%emt 0:04:16]} Rg7 {[%emt 0:05:22]} 22. g3 {[%emt 0:00:55]} c5 {[%emt 0:01:00]} 23. f3 {[%emt 0:01:01]} Bd7 {[%emt 0:02:57]} 24. Rhf1 {[%emt 0:01:10]} Rg6 {[%emt 0:03:44]} 25. Kd2 {[%emt 0:04:08]} Rh6 {[%emt 0:01:39]} 26. Rbe1 {[%emt 0:01:55]} Kf7 {[%emt 0:07:26]} 27. Re2 {[%emt 0:00:41]} Rg8 {[%emt 0:00:29]} 28. Rfe1 {[%emt 0:00:44]} Rxh4 {[%emt 0:01:56]} 29. gxh4 {[%emt 0:00:14]} Kf6 {[%emt 0:00:07]} 30. Bc2 {[%emt 0:07:15]} Rg6 {[%emt 0:02:15]} 31. Bd1 {[%emt 0:04:22]} b5 {[%emt 0:01:10]} 32. Bc2 {[%emt 0:02:23]} b4 {[%emt 0:03:15]} 33. Rf1 {[%emt 0:00:03]} Rh6 {[%emt 0:01:29]} 34. Rg2 {[%emt 0:00:43]} Be6 {[%emt 0:00:42]} 35. Ke2 {[%emt 0:03:19]} Rxh4 {[%emt 0:00:20]} 36. Bd3 {[%emt 0:01:16]} Bf7 {[%emt 0:00:47]} 37. Kd1 {[%emt 0:00:36]} Be3 {[%emt 0:00:34]} 38. Ke2 {[%emt 0:00:30]} Bd4 {[%emt 0:00:54]} 39. Kd1 {[%emt 0:00:12]} Rh3 {[%emt 0:01:34]} 40. Be2 {[%emt 0:00:00]} Bg6 {[%emt 0:00:00]} 41. Kd2 {[%emt 0:01:46]} Bh5 {[%emt 0:03:39]} 42. Bd1 {[%emt 0:03:49]} Rh4 {[%emt 0:03:28]} 43. Be2 {[%emt 0:00:36]} Bg6 {[%emt 0:02:25]} 44. Kc2 {[%emt 0:07:04]} a5 {[%emt 0:01:47]} 45. Kd2 {[%emt 0:01:15]} Bf7 {[%emt 0:00:40]} 46. Kc2 {[%emt 0:02:10]} Be8 {[%emt 0:07:09]} 47. Kd2 {[%emt 0:01:26]} a4 {[%emt 0:02:42]} 48. Kc2 {[%emt 0:00:06]} Bc6 {[%emt 0:03:38]} 49. Kd2 {[%emt 0:00:32]} Rh3 {[%emt 0:01:04]} 50. Bd1 {[%emt 0:01:11]} a3 {[%emt 0:02:32]} 51. Be2 {[%emt 0:11:14]} e4 {[%emt 0:06:55]} 52. fxe4 {[%emt 0:01:22]} Bxe4 {[%emt 0:00:07]} 53. Rg8 {[%emt 0:00:06]} Kf7 {[%emt 0:00:44]} 54. Rg4 {[%emt 0:02:07]} Ke7 {[%emt 0:01:31]} 55. Rxe4+ {[%emt 0:01:30]} fxe4 {[%emt 0:00:07]} 56. Rf5 {[%emt 0:00:01]} Rxh2 {[%emt 0:02:44]} 57. Rh5 {[%emt 0:00:02]} Rxh5 {[%emt 0:05:35]} 58. Bxh5 {[%emt 0:00:01]} Kf6 {[%emt 0:00:09]} 59. Ke2 {[%emt 0:00:18]} Kg5 {[%emt 0:00:06]} 60. Bf7 {[%emt 0:00:01]} h5 {[%emt 0:00:10]} 61. Bd5 {[%emt 0:00:24]} Kf4 {[%emt 0:00:00]} 62. Bf7 {[%emt 0:00:27]} h4 {[%emt 0:24:33]} 63. Be6 {[%emt 0:15:55]} Bf6 {[%emt 0:00:00]} 64. Bh3 Bg5 {[%emt 0:01:00]} 65. Bg2 {[%emt 0:00:00]} Ke5 {[%emt 0:00:30]} 66. Kd1 {[%emt 0:00:00]} Kd4 {[%emt 0:00:00]} 67. Kc2 {[%emt 0:00:00]} Ke3 {[%emt 0:00:00]} 68. Kd1 {[%emt 0:00:00]} Kd3 {[%emt 0:00:00]} 69. Bh3 {[%emt 0:00:00]} Kc3 {[%emt 0:00:00]} 70. Bg2 {[%emt 0:00:00]} e3 {[%emt 0:00:00]} 0-1